[Event "*** Titled Tuesday Blitz"]
[Site "Chess.com"]
[Date "2021.02.16"]
[Round "5"]
[White "stepakyedael"]
[Black "alejogarcia1999"]
[Result "0-1"]
[WhiteElo "2336"]
[BlackElo "2504"]
[TimeControl "180+1"]
[EndTime "10:55:20 PST"]
[Termination "alejogarcia1999 won by checkmate"]

1. d4 {[%clk 0:03:00.9]} 1... Nf6 {[%clk 0:02:59.5]} 2. c4 {[%clk 0:03:01]} 2...
g6 {[%clk 0:02:58.7]} 3. Nc3 {[%clk 0:03:00.9]} 3... Bg7 {[%clk 0:02:58.9]} 4.
e4 {[%clk 0:03:00.3]} 4... d6 {[%clk 0:02:59.3]} 5. f3 {[%clk 0:03:00.3]} 5...
O-O {[%clk 0:02:59.9]} 6. Be3 {[%clk 0:03:00]} 6... e5 {[%clk 0:02:59.5]} 7. d5
{[%clk 0:02:59.7]} 7... Nh5 {[%clk 0:02:59.1]} 8. Qd2 {[%clk 0:02:59.3]} 8... c6
{[%clk 0:02:53.6]} 9. O-O-O {[%clk 0:02:58.8]} 9... cxd5 {[%clk 0:02:53.9]} 10.
Qxd5 {[%clk 0:02:50.6]} 10... Nc6 {[%clk 0:02:49.8]} 11. Qxd6 {[%clk 0:02:47.3]}
11... Qa5 {[%clk 0:02:49]} 12. Qc5 {[%clk 0:02:44]} 12... Qc7 {[%clk 0:02:43.7]}
13. Nd5 {[%clk 0:02:41.9]} 13... Qb8 {[%clk 0:02:37.5]} 14. Ne7+ {[%clk
0:02:32.3]} 14... Nxe7 {[%clk 0:02:36.6]} 15. Qxe7 {[%clk 0:02:32.2]} 15... Be6
{[%clk 0:02:36.2]} 16. b3 {[%clk 0:02:24]} 16... Rc8 {[%clk 0:02:27]} 17. Kb2
{[%clk 0:02:16]} 17... Bf8 {[%clk 0:02:23.7]} 18. Qh4 {[%clk 0:02:10.8]} 18...
a5 {[%clk 0:02:23.3]} 19. a4 {[%clk 0:02:04.3]} 19... b5 {[%clk 0:02:14.9]} 20.
axb5 {[%clk 0:01:57.2]} 20... a4 {[%clk 0:02:13.8]} 21. b6 {[%clk 0:01:46.3]}
21... axb3 {[%clk 0:02:10.8]} 22. Rd5 {[%clk 0:01:28.6]} 22... Ra2+ {[%clk
0:01:57.8]} 23. Kb1 {[%clk 0:01:20.2]} 23... Ra1+ {[%clk 0:01:48.8]} 24. Kb2
{[%clk 0:01:13.2]} 24... Qa8 {[%clk 0:01:46.1]} 25. Bd3 {[%clk 0:00:57.3]} 25...
Qa3+ {[%clk 0:01:42.6]} 26. Kc3 {[%clk 0:00:53.2]} 26... Bb4# {[%clk 0:01:42.4]}
0-1

[Event "*** Titled Tuesday Blitz"]
[Site "Chess.com"]
[Date "2021.02.16"]
[Round "5"]
[White "francyIM"]
[Black "barriochess"]
[Result "1-0"]
[WhiteElo "2689"]
[BlackElo "2452"]
[TimeControl "180+1"]
[EndTime "10:55:26 PST"]
[Termination "francyIM won by resignation"]

1. d4 {[%clk 0:02:58.7]} 1... Nf6 {[%clk 0:02:59]} 2. Nc3 {[%clk 0:02:55.1]}
2... g6 {[%clk 0:02:55.5]} 3. Bg5 {[%clk 0:02:50.2]} 3... Bg7 {[%clk 0:02:49.2]}
4. Qd2 {[%clk 0:02:49.2]} 4... h6 {[%clk 0:02:47.2]} 5. Bxf6 {[%clk 0:02:48.4]}
5... Bxf6 {[%clk 0:02:45.3]} 6. h4 {[%clk 0:02:47.1]} 6... h5 {[%clk 0:02:41.9]}
7. Nf3 {[%clk 0:02:44.4]} 7... d6 {[%clk 0:02:40.7]} 8. e4 {[%clk 0:02:43]} 8...
c6 {[%clk 0:02:38.3]} 9. Bc4 {[%clk 0:02:39.5]} 9... e6 {[%clk 0:02:31.7]} 10.
O-O-O {[%clk 0:02:27.4]} 10... d5 {[%clk 0:02:31.2]} 11. Bd3 {[%clk 0:02:24.3]}
11... dxe4 {[%clk 0:02:12.9]} 12. Nxe4 {[%clk 0:02:22.5]} 12... Bg7 {[%clk
0:02:06.1]} 13. Kb1 {[%clk 0:02:19.9]} 13... Qc7 {[%clk 0:01:53.3]} 14. Qg5
{[%clk 0:02:10.7]} 14... Nd7 {[%clk 0:01:51.1]} 15. c3 {[%clk 0:01:54.4]} 15...
b6 {[%clk 0:01:43.4]} 16. Bc2 {[%clk 0:01:49.7]} 16... Bb7 {[%clk 0:01:41.1]}
17. Ne5 {[%clk 0:01:49.5]} 17... O-O {[%clk 0:01:24.3]} 18. Nxd7 {[%clk
0:01:37.3]} 18... Qxd7 {[%clk 0:01:23.5]} 19. g4 {[%clk 0:01:34]} 19... Qd5
{[%clk 0:01:07.2]} 20. gxh5 {[%clk 0:01:24.7]} 20... Qxg5 {[%clk 0:01:00.8]} 21.
hxg5 {[%clk 0:01:25.6]} 21... gxh5 {[%clk 0:00:59.9]} 22. Nf6+ {[%clk
0:01:24.8]} 22... Bxf6 {[%clk 0:00:57.7]} 23. gxf6 {[%clk 0:01:25.7]} 1-0

[Event "*** Titled Tuesday Blitz"]
[Site "Chess.com"]
[Date "2021.02.16"]
[Round "5"]
[White "PlotnikovPavel"]
[Black "nonsopolo1"]
[Result "1-0"]
[WhiteElo "2478"]
[BlackElo "2275"]
[TimeControl "180+1"]
[EndTime "10:55:31 PST"]
[Termination "PlotnikovPavel won on time"]

1. e4 {[%clk 0:03:00.9]} 1... c5 {[%clk 0:02:55.2]} 2. Nc3 {[%clk 0:03:00.4]}
2... Nc6 {[%clk 0:02:54.5]} 3. Bb5 {[%clk 0:02:59.7]} 3... g6 {[%clk 0:02:53.5]}
4. Bxc6 {[%clk 0:02:59.4]} 4... dxc6 {[%clk 0:02:53.9]} 5. f4 {[%clk 0:02:58.9]}
5... Bg7 {[%clk 0:02:53.6]} 6. Nf3 {[%clk 0:02:58.8]} 6... Bg4 {[%clk
0:02:49.5]} 7. O-O {[%clk 0:02:58.4]} 7... Nf6 {[%clk 0:02:48.9]} 8. d3 {[%clk
0:02:57.5]} 8... O-O {[%clk 0:02:47.3]} 9. h3 {[%clk 0:02:57.5]} 9... Bxf3
{[%clk 0:02:45.8]} 10. Qxf3 {[%clk 0:02:57.3]} 10... Ne8 {[%clk 0:02:38.8]} 11.
Be3 {[%clk 0:02:57.3]} 11... b6 {[%clk 0:02:38.1]} 12. f5 {[%clk 0:02:55.4]}
12... Nf6 {[%clk 0:02:29.9]} 13. Rae1 {[%clk 0:02:50.9]} 13... Nd7 {[%clk
0:02:28.6]} 14. Qg3 {[%clk 0:02:47.3]} 14... a5 {[%clk 0:02:09.6]} 15. a4 {[%clk
0:02:45.9]} 15... Rb8 {[%clk 0:02:05.5]} 16. Bf4 {[%clk 0:02:43.2]} 16... Rb7
{[%clk 0:02:03.6]} 17. e5 {[%clk 0:02:40.6]} 17... Qe8 {[%clk 0:00:52.1]} 18. h4
{[%clk 0:02:35.8]} 18... f6 {[%clk 0:00:40.6]} 19. e6 {[%clk 0:02:33.4]} 19...
Ne5 {[%clk 0:00:35.8]} 20. h5 {[%clk 0:02:30.8]} 20... Kh8 {[%clk 0:00:09.9]}
21. hxg6 {[%clk 0:02:30.5]} 21... hxg6 {[%clk 0:00:09.2]} 22. Bxe5 {[%clk
0:02:28.1]} 22... fxe5 {[%clk 0:00:08]} 23. fxg6 {[%clk 0:02:29]} 23... Bh6
{[%clk 0:00:04.5]} 24. Rf7 {[%clk 0:02:27.3]} 24... Rxf7 {[%clk 0:00:00.9]} 25.
gxf7 {[%clk 0:02:28.2]} 1-0

[Event "*** Titled Tuesday Blitz"]
[Site "Chess.com"]
[Date "2021.02.16"]
[Round "5"]
[White "Chernov_Alexander_A"]
[Black "csati17"]
[Result "0-1"]
[WhiteElo "2292"]
[BlackElo "2577"]
[TimeControl "180+1"]
[EndTime "10:55:34 PST"]
[Termination "csati17 won by resignation"]

1. e4 {[%clk 0:02:56]} 1... e6 {[%clk 0:03:00.2]} 2. d4 {[%clk 0:02:54.6]} 2...
d5 {[%clk 0:03:00.5]} 3. Nd2 {[%clk 0:02:54.8]} 3... Nf6 {[%clk 0:02:59.7]} 4.
e5 {[%clk 0:02:53.8]} 4... Nfd7 {[%clk 0:03:00.1]} 5. Bd3 {[%clk 0:02:54.2]}
5... c5 {[%clk 0:03:01]} 6. c3 {[%clk 0:02:52.3]} 6... Nc6 {[%clk 0:03:01.9]} 7.
Ne2 {[%clk 0:02:51.4]} 7... cxd4 {[%clk 0:03:02.5]} 8. cxd4 {[%clk 0:02:51.2]}
8... f6 {[%clk 0:03:03.4]} 9. exf6 {[%clk 0:02:50.4]} 9... Nxf6 {[%clk
0:03:04.3]} 10. Nf3 {[%clk 0:02:50.4]} 10... Bd6 {[%clk 0:03:05.2]} 11. O-O
{[%clk 0:02:50.1]} 11... O-O {[%clk 0:03:06.1]} 12. Bg5 {[%clk 0:02:37]} 12...
Qc7 {[%clk 0:03:04.2]} 13. Rc1 {[%clk 0:02:33.5]} 13... a6 {[%clk 0:03:02.6]}
14. Nc3 {[%clk 0:02:31]} 14... Bd7 {[%clk 0:03:00.6]} 15. a3 {[%clk 0:02:27.8]}
15... Be8 {[%clk 0:02:59.5]} 16. Qe2 {[%clk 0:02:20.8]} 16... Bh5 {[%clk
0:02:35.2]} 17. Qxe6+ {[%clk 0:02:19.5]} 17... Kh8 {[%clk 0:02:35.3]} 18. Qh3
{[%clk 0:02:11.6]} 18... Qf7 {[%clk 0:02:06.6]} 19. Bxf6 {[%clk 0:02:04.2]}
19... gxf6 {[%clk 0:02:07.5]} 20. g4 {[%clk 0:01:38.6]} 20... Rg8 {[%clk
0:02:01.2]} 21. Bf5 {[%clk 0:01:35.5]} 21... Ne7 {[%clk 0:01:59.2]} 22. Kh1
{[%clk 0:01:33.2]} 22... Nxf5 {[%clk 0:01:57.1]} 23. gxf5 {[%clk 0:01:33.2]}
23... Bg4 {[%clk 0:01:55.9]} 24. Qg2 {[%clk 0:01:30.1]} 24... Qh5 {[%clk
0:01:55.7]} 25. Nd2 {[%clk 0:00:57.4]} 25... Bxf5 {[%clk 0:01:45.5]} 0-1

[Event "*** Titled Tuesday Blitz"]
[Site "Chess.com"]
[Date "2021.02.16"]
[Round "5"]
[White "remi04"]
[Black "dosto07"]
[Result "0-1"]
[WhiteElo "2605"]
[BlackElo "2436"]
[TimeControl "180+1"]
[EndTime "10:55:52 PST"]
[Termination "dosto07 won by resignation"]

1. e4 {[%clk 0:03:00.9]} 1... e5 {[%clk 0:02:59.5]} 2. Bc4 {[%clk 0:02:59.6]}
2... Nc6 {[%clk 0:02:58.6]} 3. d3 {[%clk 0:02:58.5]} 3... Bc5 {[%clk 0:02:58.2]}
4. Nf3 {[%clk 0:02:58.6]} 4... Nf6 {[%clk 0:02:57.5]} 5. O-O {[%clk 0:02:58]}
5... d6 {[%clk 0:02:57.9]} 6. c3 {[%clk 0:02:57.3]} 6... a6 {[%clk 0:02:57.7]}
7. d4 {[%clk 0:02:56.5]} 7... exd4 {[%clk 0:02:49.9]} 8. cxd4 {[%clk 0:02:56.3]}
8... Ba7 {[%clk 0:02:49]} 9. Nc3 {[%clk 0:02:54.1]} 9... O-O {[%clk 0:02:48.4]}
10. Bg5 {[%clk 0:02:52.9]} 10... h6 {[%clk 0:02:48.3]} 11. Bh4 {[%clk
0:02:52.1]} 11... Bg4 {[%clk 0:02:45]} 12. Ne2 {[%clk 0:01:52.4]} 12... g5
{[%clk 0:02:23]} 13. Bg3 {[%clk 0:01:49]} 13... Nxe4 {[%clk 0:02:18.1]} 14. d5
{[%clk 0:01:25.7]} 14... Ne7 {[%clk 0:02:10.3]} 15. h3 {[%clk 0:01:10.2]} 15...
Bh5 {[%clk 0:01:58.9]} 16. Bh2 {[%clk 0:01:02.5]} 16... Bxf3 {[%clk 0:01:41.8]}
17. gxf3 {[%clk 0:01:02.2]} 17... Nf6 {[%clk 0:01:40]} 18. Rc1 {[%clk
0:00:58.4]} 18... Nf5 {[%clk 0:01:36]} 19. Bd3 {[%clk 0:00:54]} 19... Nh4 {[%clk
0:01:35.2]} 20. Ng3 {[%clk 0:00:31.6]} 20... Qd7 {[%clk 0:01:30.5]} 0-1

[Event "*** Titled Tuesday Blitz"]
[Site "Chess.com"]
[Date "2021.02.16"]
[Round "5"]
[White "Rodalquilar"]
[Black "Dave_ChessMate"]
[Result "1-0"]
[WhiteElo "2665"]
[BlackElo "2438"]
[TimeControl "180+1"]
[EndTime "10:55:53 PST"]
[Termination "Rodalquilar won by resignation"]

1. d4 {[%clk 0:03:00.9]} 1... Nf6 {[%clk 0:02:59.6]} 2. Nf3 {[%clk 0:03:01]}
2... g6 {[%clk 0:02:57.9]} 3. Bf4 {[%clk 0:03:01]} 3... Bg7 {[%clk 0:02:57.8]}
4. e3 {[%clk 0:03:01.5]} 4... O-O {[%clk 0:02:58.3]} 5. Be2 {[%clk 0:03:01.8]}
5... d5 {[%clk 0:02:55.7]} 6. O-O {[%clk 0:03:01.5]} 6... c5 {[%clk 0:02:56.6]}
7. c3 {[%clk 0:03:01.3]} 7... Nc6 {[%clk 0:02:57.1]} 8. h3 {[%clk 0:02:45.6]}
8... Nd7 {[%clk 0:02:55.7]} 9. Nbd2 {[%clk 0:02:45.6]} 9... b6 {[%clk 0:02:55]}
10. Qb3 {[%clk 0:02:42.4]} 10... Bb7 {[%clk 0:02:54.3]} 11. Rfd1 {[%clk
0:02:09.2]} 11... e6 {[%clk 0:02:39.5]} 12. Bd6 {[%clk 0:02:08.8]} 12... Na5
{[%clk 0:02:01.5]} 13. Qa3 {[%clk 0:02:07.9]} 13... Re8 {[%clk 0:01:58.6]} 14.
b4 {[%clk 0:01:48.5]} 14... cxb4 {[%clk 0:01:35.5]} 15. cxb4 {[%clk 0:01:48.7]}
15... Nc6 {[%clk 0:01:28.5]} 16. Rac1 {[%clk 0:01:31.7]} 16... Nf6 {[%clk
0:01:23.9]} 17. b5 {[%clk 0:01:30.7]} 17... Na5 {[%clk 0:01:23]} 18. Ne5 {[%clk
0:01:14.3]} 18... Rc8 {[%clk 0:00:56]} 19. Rxc8 {[%clk 0:01:12.1]} 19... Qxc8
{[%clk 0:00:56.9]} 20. Rc1 {[%clk 0:01:12]} 20... Qb8 {[%clk 0:00:51.6]} 21.
Bxb8 {[%clk 0:01:11.1]} 21... Bf8 {[%clk 0:00:43.9]} 22. Bd6 {[%clk 0:01:08.6]}
1-0

[Event "*** Titled Tuesday Blitz"]
[Site "Chess.com"]
[Date "2021.02.16"]
[Round "5"]
[White "Oleksandr_Bortnyk"]
[Black "lilleper1"]
[Result "1-0"]
[WhiteElo "2942"]
[BlackElo "2838"]
[TimeControl "180+1"]
[EndTime "10:55:54 PST"]
[Termination "Oleksandr_Bortnyk won by checkmate"]

1. e4 {[%clk 0:03:00.9]} 1... c5 {[%clk 0:02:59.5]} 2. Nf3 {[%clk 0:02:59.9]}
2... e6 {[%clk 0:03:00]} 3. c3 {[%clk 0:02:50.2]} 3... Nf6 {[%clk 0:02:59.2]} 4.
e5 {[%clk 0:02:46]} 4... Nd5 {[%clk 0:02:59.5]} 5. d4 {[%clk 0:02:46.9]} 5...
cxd4 {[%clk 0:02:59.7]} 6. cxd4 {[%clk 0:02:47.8]} 6... d6 {[%clk 0:02:59.9]} 7.
Bc4 {[%clk 0:02:46.3]} 7... Nc6 {[%clk 0:02:59.7]} 8. O-O {[%clk 0:02:46.8]}
8... Be7 {[%clk 0:02:59.9]} 9. Qe2 {[%clk 0:02:47.4]} 9... O-O {[%clk
0:02:58.7]} 10. Rd1 {[%clk 0:02:47.8]} 10... Na5 {[%clk 0:02:52.7]} 11. Bd3
{[%clk 0:02:39]} 11... Nb4 {[%clk 0:02:52.3]} 12. Nc3 {[%clk 0:02:39]} 12...
Nxd3 {[%clk 0:02:44.8]} 13. Rxd3 {[%clk 0:02:39.9]} 13... d5 {[%clk 0:02:35.4]}
14. Ne1 {[%clk 0:02:23.7]} 14... b6 {[%clk 0:02:30.9]} 15. Rh3 {[%clk
0:02:17.6]} 15... g6 {[%clk 0:01:33.7]} 16. Bh6 {[%clk 0:02:12]} 16... Re8
{[%clk 0:01:31.7]} 17. Qg4 {[%clk 0:02:04.8]} 17... f5 {[%clk 0:01:28.4]} 18.
Qf4 {[%clk 0:02:03.9]} 18... Nc6 {[%clk 0:01:22.1]} 19. Nf3 {[%clk 0:01:59.7]}
19... Ba6 {[%clk 0:01:08.3]} 20. Bg5 {[%clk 0:01:49.9]} 20... Rc8 {[%clk
0:00:52.7]} 21. Qh4 {[%clk 0:01:45.6]} 21... h5 {[%clk 0:00:52.7]} 22. Rg3
{[%clk 0:01:42.9]} 22... Kf7 {[%clk 0:00:50.8]} 23. Bxe7 {[%clk 0:01:39.3]}
23... Rxe7 {[%clk 0:00:48.8]} 24. Qf6+ {[%clk 0:01:36.5]} 24... Ke8 {[%clk
0:00:48.5]} 25. Rxg6 {[%clk 0:01:33.5]} 25... Kd7 {[%clk 0:00:48.1]} 26. Nxd5
{[%clk 0:01:34.1]} 26... exd5 {[%clk 0:00:26.4]} 27. Qd6+ {[%clk 0:01:35]} 27...
Ke8 {[%clk 0:00:25.3]} 28. Rg8+ {[%clk 0:01:35.9]} 28... Kf7 {[%clk 0:00:25.6]}
29. Qg6# {[%clk 0:01:36.8]} 1-0

[Event "*** Titled Tuesday Blitz"]
[Site "Chess.com"]
[Date "2021.02.16"]
[Round "5"]
[White "kuban1991"]
[Black "attack2mateU"]
[Result "1-0"]
[WhiteElo "2886"]
[BlackElo "2711"]
[TimeControl "180+1"]
[EndTime "10:56:00 PST"]
[Termination "kuban1991 won by resignation"]

1. Nf3 {[%clk 0:03:00.9]} 1... c5 {[%clk 0:02:59.7]} 2. g3 {[%clk 0:03:01]} 2...
Nc6 {[%clk 0:02:59.7]} 3. Bg2 {[%clk 0:03:01.9]} 3... e5 {[%clk 0:02:59.5]} 4.
O-O {[%clk 0:03:01.7]} 4... e4 {[%clk 0:02:58.7]} 5. Ne1 {[%clk 0:03:01.2]} 5...
d5 {[%clk 0:02:58.2]} 6. c4 {[%clk 0:03:01.7]} 6... d4 {[%clk 0:02:30.4]} 7. d3
{[%clk 0:02:53.2]} 7... exd3 {[%clk 0:02:24.3]} 8. Nxd3 {[%clk 0:02:49]} 8...
Nf6 {[%clk 0:02:21.4]} 9. e4 {[%clk 0:02:37.3]} 9... Be7 {[%clk 0:01:55.3]} 10.
Nd2 {[%clk 0:02:30]} 10... h5 {[%clk 0:01:52.3]} 11. h3 {[%clk 0:02:28.3]} 11...
g5 {[%clk 0:01:33.5]} 12. Nb3 {[%clk 0:02:24.6]} 12... g4 {[%clk 0:01:29.8]} 13.
h4 {[%clk 0:02:23.4]} 13... Be6 {[%clk 0:01:02.9]} 14. Nbxc5 {[%clk 0:02:09.4]}
14... Bxc4 {[%clk 0:01:02.6]} 15. e5 {[%clk 0:01:47.8]} 15... Nxe5 {[%clk
0:00:38]} 16. Nxe5 {[%clk 0:01:37.2]} 16... Bxf1 {[%clk 0:00:38]} 17. Qxf1
{[%clk 0:01:32.5]} 17... Qc7 {[%clk 0:00:14.2]} 18. Qb5+ {[%clk 0:01:29.5]}
18... Kf8 {[%clk 0:00:14.8]} 19. Ncd3 {[%clk 0:01:26]} 1-0

[Event "*** Titled Tuesday Blitz"]
[Site "Chess.com"]
[Date "2021.02.16"]
[Round "5"]
[White "BahadirOzen"]
[Black "IMAghasiyevKamal"]
[Result "1-0"]
[WhiteElo "2753"]
[BlackElo "2525"]
[TimeControl "180+1"]
[EndTime "10:56:02 PST"]
[Termination "BahadirOzen won by resignation"]

1. g3 {[%clk 0:03:00.9]} 1... Nf6 {[%clk 0:02:57.9]} 2. Bg2 {[%clk 0:03:01.1]}
2... d5 {[%clk 0:02:58.1]} 3. Nf3 {[%clk 0:03:00.7]} 3... e6 {[%clk 0:02:58.2]}
4. O-O {[%clk 0:03:00.3]} 4... Be7 {[%clk 0:02:58.5]} 5. b3 {[%clk 0:03:00.6]}
5... O-O {[%clk 0:02:57.9]} 6. Bb2 {[%clk 0:03:00.9]} 6... b6 {[%clk 0:02:57.9]}
7. c4 {[%clk 0:02:59.4]} 7... Bb7 {[%clk 0:02:57.1]} 8. e3 {[%clk 0:02:59.9]}
8... dxc4 {[%clk 0:02:53.8]} 9. bxc4 {[%clk 0:02:59.5]} 9... c5 {[%clk
0:02:53.1]} 10. d3 {[%clk 0:02:59.4]} 10... Nc6 {[%clk 0:02:52.7]} 11. Qe2
{[%clk 0:02:59.7]} 11... Qc7 {[%clk 0:02:42]} 12. Nc3 {[%clk 0:02:59.5]} 12...
Rad8 {[%clk 0:02:41.9]} 13. Rad1 {[%clk 0:02:51.2]} 13... Qc8 {[%clk 0:02:39.9]}
14. Ne1 {[%clk 0:02:43.8]} 14... Rfe8 {[%clk 0:02:35.8]} 15. f4 {[%clk
0:02:43.4]} 15... Nb4 {[%clk 0:02:27.4]} 16. a3 {[%clk 0:02:38.5]} 16... Bxg2
{[%clk 0:02:23]} 17. Nxg2 {[%clk 0:02:37.4]} 17... Nc6 {[%clk 0:02:20.3]} 18. g4
{[%clk 0:02:37.5]} 18... a6 {[%clk 0:01:37.8]} 19. g5 {[%clk 0:02:33.2]} 19...
Nd7 {[%clk 0:01:37.6]} 20. Ne4 {[%clk 0:02:21.3]} 20... b5 {[%clk 0:01:32.8]}
21. Qh5 {[%clk 0:02:13.5]} 21... bxc4 {[%clk 0:01:14.2]} 22. Rf3 {[%clk
0:01:53.5]} 22... Qb7 {[%clk 0:00:48.5]} 23. Bxg7 {[%clk 0:01:36.7]} 23... Kxg7
{[%clk 0:00:44.7]} 24. Qh6+ {[%clk 0:01:36.3]} 24... Kg8 {[%clk 0:00:45]} 25.
Rh3 {[%clk 0:01:34.4]} 25... Qb2 {[%clk 0:00:38.7]} 26. Qxh7+ {[%clk 0:01:26.6]}
26... Kf8 {[%clk 0:00:38.7]} 27. d4 {[%clk 0:01:24.5]} 1-0

[Event "*** Titled Tuesday Blitz"]
[Site "Chess.com"]
[Date "2021.02.16"]
[Round "5"]
[White "Andrakhanova"]
[Black "geordie_derraugh"]
[Result "1-0"]
[WhiteElo "2281"]
[BlackElo "2460"]
[TimeControl "180+1"]
[EndTime "10:56:03 PST"]
[Termination "Andrakhanova won by resignation"]

1. c4 {[%clk 0:02:55.5]} 1... e5 {[%clk 0:02:57.2]} 2. Nc3 {[%clk 0:02:55.3]}
2... Nc6 {[%clk 0:02:54.6]} 3. g3 {[%clk 0:02:55.2]} 3... f5 {[%clk 0:02:54.6]}
4. Bg2 {[%clk 0:02:55.1]} 4... Nf6 {[%clk 0:02:54.9]} 5. b3 {[%clk 0:02:54.1]}
5... Bc5 {[%clk 0:02:54.5]} 6. Bb2 {[%clk 0:02:52.9]} 6... d6 {[%clk 0:02:54.5]}
7. e3 {[%clk 0:02:53.2]} 7... O-O {[%clk 0:02:53.6]} 8. Nge2 {[%clk 0:02:53.3]}
8... a5 {[%clk 0:02:49.7]} 9. d4 {[%clk 0:02:51.1]} 9... Bb6 {[%clk 0:02:47.7]}
10. Nd5 {[%clk 0:02:46.4]} 10... Nxd5 {[%clk 0:02:44.4]} 11. cxd5 {[%clk
0:02:47.3]} 11... Nb4 {[%clk 0:02:20.6]} 12. dxe5 {[%clk 0:02:33.1]} 12... dxe5
{[%clk 0:02:20.5]} 13. a3 {[%clk 0:02:31.3]} 13... Na6 {[%clk 0:02:14.1]} 14.
Bxe5 {[%clk 0:02:30.8]} 14... Nc5 {[%clk 0:02:12.9]} 15. O-O {[%clk 0:02:26.7]}
15... a4 {[%clk 0:02:12.6]} 16. b4 {[%clk 0:02:18.7]} 16... Nb3 {[%clk
0:02:10.2]} 17. Ra2 {[%clk 0:02:16.3]} 17... Qe8 {[%clk 0:02:09.2]} 18. Bc3
{[%clk 0:02:10.2]} 18... Qb5 {[%clk 0:02:05.7]} 19. Nd4 {[%clk 0:02:04]} 19...
Nxd4 {[%clk 0:01:51.3]} 20. Bxd4 {[%clk 0:02:04.9]} 20... Ra6 {[%clk 0:01:51.2]}
21. Rc2 {[%clk 0:01:59.8]} 21... Rd8 {[%clk 0:01:47.5]} 22. Bxb6 {[%clk
0:01:55.8]} 22... Qxb6 {[%clk 0:01:44.9]} 23. Qd3 {[%clk 0:01:36.7]} 23... c6
{[%clk 0:01:38.6]} 24. Qc4 {[%clk 0:01:28.9]} 24... cxd5 {[%clk 0:01:24.6]} 25.
Bxd5+ {[%clk 0:01:29.8]} 25... Kf8 {[%clk 0:01:24.9]} 26. Rd1 {[%clk 0:01:27.7]}
26... Be6 {[%clk 0:01:22.9]} 27. Rcd2 {[%clk 0:01:25.1]} 27... Rc8 {[%clk
0:01:15.1]} 28. Qf4 {[%clk 0:01:17.1]} 28... g6 {[%clk 0:00:56]} 29. Bxe6 {[%clk
0:01:10.8]} 29... Qxe6 {[%clk 0:00:55.8]} 30. Qh6+ {[%clk 0:01:10.1]} 30... Kg8
{[%clk 0:00:54.5]} 31. Rd7 {[%clk 0:01:09.9]} 1-0

[Event "*** Titled Tuesday Blitz"]
[Site "Chess.com"]
[Date "2021.02.16"]
[Round "5"]
[White "DJojua"]
[Black "Problematique_99"]
[Result "1-0"]
[WhiteElo "2760"]
[BlackElo "2444"]
[TimeControl "180+1"]
[EndTime "10:56:04 PST"]
[Termination "DJojua won by resignation"]

1. d4 {[%clk 0:03:00]} 1... Nf6 {[%clk 0:02:59.4]} 2. Nf3 {[%clk 0:02:59.2]}
2... e6 {[%clk 0:02:59.5]} 3. Bf4 {[%clk 0:02:58.2]} 3... c5 {[%clk 0:02:56.3]}
4. Nc3 {[%clk 0:02:51.2]} 4... cxd4 {[%clk 0:02:50]} 5. Nxd4 {[%clk 0:02:41]}
5... a6 {[%clk 0:02:49.4]} 6. e4 {[%clk 0:02:36.9]} 6... Bb4 {[%clk 0:02:44.3]}
7. Bd3 {[%clk 0:02:27.8]} 7... d6 {[%clk 0:02:37.2]} 8. Bd2 {[%clk 0:02:20.6]}
8... O-O {[%clk 0:02:35]} 9. Qe2 {[%clk 0:02:15]} 9... Nbd7 {[%clk 0:02:33.9]}
10. a3 {[%clk 0:02:11.9]} 10... Bc5 {[%clk 0:02:34]} 11. Nb3 {[%clk 0:02:10.7]}
11... Ba7 {[%clk 0:02:31.6]} 12. f4 {[%clk 0:02:08.8]} 12... Qc7 {[%clk
0:02:31.2]} 13. g4 {[%clk 0:02:06.1]} 13... Nc5 {[%clk 0:02:26]} 14. Nxc5 {[%clk
0:02:04.3]} 14... Bxc5 {[%clk 0:02:24.9]} 15. g5 {[%clk 0:01:56.6]} 15... Nd7
{[%clk 0:02:24.6]} 16. h4 {[%clk 0:01:55.9]} 16... b5 {[%clk 0:02:06.4]} 17. h5
{[%clk 0:01:55.5]} 17... Bb7 {[%clk 0:02:04.6]} 18. g6 {[%clk 0:01:52.7]} 18...
h6 {[%clk 0:01:43.8]} 19. gxf7+ {[%clk 0:01:49.6]} 19... Rxf7 {[%clk 0:01:43.7]}
20. O-O-O {[%clk 0:01:49.2]} 20... Kh8 {[%clk 0:01:29.3]} 21. Qg4 {[%clk
0:01:39.7]} 21... Nf8 {[%clk 0:01:19.3]} 22. Rh3 {[%clk 0:01:31.5]} 22... Qe7
{[%clk 0:01:11.6]} 23. Rg3 {[%clk 0:01:29.3]} 23... b4 {[%clk 0:01:02.7]} 24.
axb4 {[%clk 0:01:25.1]} 24... Bxb4 {[%clk 0:01:03.6]} 25. f5 {[%clk 0:01:18.7]}
25... exf5 {[%clk 0:00:54.2]} 26. exf5 {[%clk 0:01:15.5]} 26... Qf6 {[%clk
0:00:49.1]} 27. Qxb4 {[%clk 0:01:10.6]} 1-0

[Event "*** Titled Tuesday Blitz"]
[Site "Chess.com"]
[Date "2021.02.16"]
[Round "5"]
[White "zeitnot2006"]
[Black "Lady_Nika"]
[Result "0-1"]
[WhiteElo "2523"]
[BlackElo "2395"]
[TimeControl "180+1"]
[EndTime "10:56:05 PST"]
[Termination "Lady_Nika won by resignation"]

1. d4 {[%clk 0:02:03]} 1... d5 {[%clk 0:02:59]} 2. Bf4 {[%clk 0:01:58.3]} 2...
e6 {[%clk 0:02:58.9]} 3. Nf3 {[%clk 0:01:54.1]} 3... Bd6 {[%clk 0:02:58.5]} 4.
Bxd6 {[%clk 0:01:53.5]} 4... Qxd6 {[%clk 0:02:58.1]} 5. e3 {[%clk 0:01:53.6]}
5... Qb4+ {[%clk 0:02:57.1]} 6. Nbd2 {[%clk 0:01:51.8]} 6... Qxb2 {[%clk
0:02:56.8]} 7. Bd3 {[%clk 0:01:51.2]} 7... Nf6 {[%clk 0:02:55.8]} 8. O-O {[%clk
0:01:51]} 8... O-O {[%clk 0:02:55.7]} 9. c4 {[%clk 0:01:50.9]} 9... Qa3 {[%clk
0:02:55.2]} 10. Nb3 {[%clk 0:01:46.4]} 10... dxc4 {[%clk 0:02:53.5]} 11. Bxc4
{[%clk 0:01:46]} 11... c6 {[%clk 0:02:53.2]} 12. Ne5 {[%clk 0:01:45.3]} 12...
Qe7 {[%clk 0:02:52.4]} 13. f4 {[%clk 0:01:45.1]} 13... Nbd7 {[%clk 0:02:52.4]}
14. Bd3 {[%clk 0:01:45.5]} 14... Nxe5 {[%clk 0:02:51.9]} 15. fxe5 {[%clk
0:01:46.4]} 15... Nd5 {[%clk 0:02:52.1]} 16. Rf3 {[%clk 0:01:43.7]} 16... f5
{[%clk 0:02:51]} 17. exf6 {[%clk 0:01:35.2]} 17... Rxf6 {[%clk 0:02:50.6]} 18.
Nc5 {[%clk 0:01:31.8]} 18... b6 {[%clk 0:02:48.9]} 19. Ne4 {[%clk 0:01:29.5]}
19... Rxf3 {[%clk 0:02:47.9]} 20. Qxf3 {[%clk 0:01:30.4]} 20... Bd7 {[%clk
0:02:47.6]} 21. Qh5 {[%clk 0:01:24.2]} 21... g6 {[%clk 0:02:46]} 22. Qe5 {[%clk
0:01:20.9]} 22... Rf8 {[%clk 0:02:41.8]} 23. Ng5 {[%clk 0:01:08.2]} 23... Qg7
{[%clk 0:02:32.9]} 24. Qg3 {[%clk 0:00:55.2]} 24... c5 {[%clk 0:02:28.4]} 25.
Nf3 {[%clk 0:00:32.7]} 25... Nxe3 {[%clk 0:02:25.8]} 26. Re1 {[%clk 0:00:22]}
26... cxd4 {[%clk 0:02:24.9]} 27. Qd6 {[%clk 0:00:19.1]} 27... Qf7 {[%clk
0:02:10.7]} 28. Qxd4 {[%clk 0:00:17.1]} 28... Nxg2 {[%clk 0:02:08.4]} 29. Ng5
{[%clk 0:00:08.9]} 29... Nxe1 {[%clk 0:01:57.6]} 30. Nxf7 {[%clk 0:00:04]} 30...
Nf3+ {[%clk 0:01:57.8]} 31. Kg2 {[%clk 0:00:04.8]} 31... Nxd4 {[%clk 0:01:58]}
32. Ne5 {[%clk 0:00:05.7]} 32... Bc8 {[%clk 0:01:57.7]} 33. Bc4 {[%clk
0:00:06.1]} 33... Nf5 {[%clk 0:01:57.5]} 0-1